Workbook

Sheet DBase
C1: 2 | D1: =C1+1 -> 3 | E1: 11 | F1: =E1+1 -> 12 | G1: =F1+1 -> 13 | H1: =G1+1 -> 14 | I1: =H1+1 -> 15 | J1: =I1+1 -> 16 | K1: =J1+1 -> 17 | L1: =K1+1 -> 18 | M1: =L1+1 -> 19 | N1: =M1+1 -> 20 | O1: =N1+1 -> 21 | P1: =O1+1 -> 22 | Q1: =P1+1 -> 23 | R1: =Q1+1 -> 24 | S1: =R1+1 -> 25 | T1: =S1+1 -> 26 | U1: =T1+1 -> 27 | V1: =U1+1 -> 28 | W1: =V1+1 -> 29 | X1: =W1+1 -> 30 | Y1: =X1+1 -> 31 | Z1: =Y1+1 -> 32 | AA1: =Z1+1 -> 33 | AB1: =AA1+1 -> 34 | AC1: =AB1+1 -> 35 | AD1: =AC1+1 -> 36 | AE1: =AD1+1 -> 37 | AF1: =AE1+1 -> 38 | AG1: =AF1+1 -> 39 | AH1: =AG1+1 -> 40 | AI1: =AH1+1 -> 41 | AJ1: =AI1+1 -> 42 | AK1: =AJ1+1 -> 43 | AL1: =AK1+1 -> 44 | AM1: =AL1+1 -> 45 | AN1: =AM1+1 -> 46 | AO1: 47 | AP1: =AO1+1 -> 48 | AQ1: =AP1+1 -> 49 | AR1: =AQ1+1 -> 50 | AS1: =AR1+1 -> 51 | AT1: =AS1+1 -> 52 | AU1: =AT1+1 -> 53 | AV1: =AU1+1 -> 54 | AW1: =AV1+1 -> 55 | AX1: =AW1+1 -> 56 | AY1: =AX1+1 -> 57 | AZ1: =AY1+1 -> 58 | BA1: =AZ1+1 -> 59 | BB1: =BA1+1 -> 60 | BC1: =BB1+1 -> 61 | BD1: =BC1+1 -> 62 | BE1: =BD1+1 -> 63 | BF1: =BE1+1 -> 64 | BG1: =BF1+1 -> 65 | BH1: =BG1+1 -> 66 | BI1: =BH1+1 -> 67 | BJ1: =BI1+1 -> 68 | BK1: =BJ1+1 -> 69 | BL1: =BK1+1 -> 70 | BM1: =BL1+1 -> 71 | BN1: =BM1+1 -> 72 | BO1: =BN1+1 -> 73 | BP1: =BO1+1 -> 74 | BQ1: =BP1+1 -> 75 | BR1: =BQ1+1 -> 76 | BS1: =BR1+1 -> 77 | BT1: =BS1+1 -> 78 | BU1: =BT1+1 -> 79 | BV1: =BU1+1 -> 80 | BW1: =BV1+1 -> 81 | BX1: =BW1+1 -> 82 | BY1: =BX1+1 -> 83 | BZ1: =BY1+1 -> 84 | CA1: =BZ1+1 -> 85 | CB1: =CA1+1 -> 86 | CC1: =CB1+1 -> 87 | CD1: =CC1+1 -> 88 | CE1: =CD1+1 -> 89 | CF1: =CE1+1 -> 90 | CG1: =CF1+1 -> 91 | CH1: =CG1+1 -> 92 | CI1: =CH1+1 -> 93 | CJ1: =CI1+1 -> 94 | CK1: =CJ1+1 -> 95 | CL1: =CK1+1 -> 96 | CM1: =CL1+1 -> 97 | CN1: =CM1+1 -> 98 | CO1: =CN1+1 -> 99
E2: استحقاقات | O2: نسبة الحافز x (مرتب اساسى + علاوات مضمومة) | CO2: مضاف | CQ2: مضاف
B3: الرقم الثابت | C3: رقم الحساب | D3: الاسم | E3: مرتب اساسي | F3: بدل خطر | G3: بدل ندرة | H3: بدل انتقال | I3: مصاريف انتقال | J3: غلاء معيشة إضافى | K3: غلاء معيشه اصلى | L3: مصاريف اعاشة | M3: نوبتجيات | N3: جهود غير عادية | O3: حوافز | P3: منحة عيد عمال | Q3: منحة 2019 من الدولة | R3: منحة 2020 من الدولة | S3: علاوات مضمومه | T3: علاوات غير مضمومه | U3: علاوة استثنائية 2018 | V3: بـدل وجبة | W3: قيمة اضافى | X3: بدل تفرغ | Y3: بدل تمثيل | Z3: بدل كمبيوتر | AA3: بدل سفر | AB3: بدل طبيعة عمل | AC3: بدل صرافة | AD3: بـدل وجبة - دفعات | AE3: قيمة اضافى - دفعات | AF3: بدل اجر مقابل | AG3: فروق بدلات | AH3: فروق بدل انتقال | AI3: فروق حوافز | AJ3: بدل سماعة | AK3: مبالغ خصمت بالزيادة | AL3: بدل مرور | AM3: جهود غير عادية غير منسبة | AN3: بدل إقامة اضافي | AO3: منحة 2021 من الدولة | AP3: جملة الاستحقاقات | AQ3: الصافى | AR3: صندوق زمالة | AS3: نقابه عمال بناء | AT3: كسب عمل | AU3: خصم ساعات انصراف | AV3: فاتوره فودافون | AW3: المساهمة التـكـافـليـة | AX3: قانون 4 لعام 2021 | AY3: مبالغ صرفت بالزياده | AZ3: قسط شقق عاملين | BA3: تبرع مستشفى 57357 | BB3: اثاث | BC3: بريميوم كارد | BD3: اشتراك اتوبيس | BE3: فاتوره اتصالات | BF3: مده سابقه | BG3: سلفه عمره وحج | BH3: ناوباى - NowPay | BI3: ١ - سلفه صندوق | BJ3: البنك اهلى المصرى | BK3: نفقات | BL3: تبرع مستشفى ابو الريش | BM3: فاتوره أورانج | BN3: تسويه ضرائب مدينه | BO3: قسط تامين جماعى | BP3: دفعات | BQ3: مساهمة العاملين فى العلاج | BR3: جزاءات مقسطة | BS3: نقابات مهنيه تجاريين | BT3: اقساط رحلات ١ | BU3: فرق البنك اهلى المصرى | BV3: بنك ناصر اجتماعى | BW3: تبرع مستشفى اورام | BX3: تبرع مؤسسة مصر الخير | BY3: فرق استقطاعات اخري | BZ3: تبرع مؤسسة مجدى يعقوب | CA3: متجمد النفقه الشرعيه | CB3: فرق مده سابقه | CC3: تبرع المعهد القومى للكلى | CD3: فرق نفقات | CE3: سلفه علاج | CF3: فرق اثاث | CG3: صندوق تامين العاملين اقساط | CH3: مبالغ سددتها الشركة عن العامل | CI3: شيخوخة وعجز حصة عامل | CJ3: نظام مكافأة حصة عامل | CK3: تامين مرض حصة عامل (صحى ) | CL3: إجمالى تأمينات العامل | CM3: إجمالى تأمينات الشركة | CN3: إجمالى استقطاعات وتأمينات | CO3: الحالة الاجتماعية | CQ3: نسبة الحافز
A4: 1 | B4: 1 | D4: Name _1 | E4: 841.3 | F4: 226.81 | G4: 350 | H4: 60 | I4: 600 | J4: 6 | K4: 4 | L4: 500 | M4: 350 | N4: =IF(Y4=0,45%*(E4+S4),IF(Y4=100,60%*(E4+S4),IF(Y4=150,65%*(E4+S4),IF(Y4=200,70%*(E4+S4),"خطأ")))) -> 625.8285 | O4: =CQ4*(E4+S4) -> 2781.46 | P4: 10 | Q4: 31.83 | R4: 56.76 | S4: 549.43 | T4: 177.4 | U4: 190 | V4: 0 | W4: 0 | X4: 0 | Y4: 0 | Z4: 0 | AA4: 0 | AB4: 0 | AC4: 0 | AD4: 0 | AE4: 0 | AF4: 0 | AG4: 0 | AH4: 0 | AI4: 0 | AJ4: 0 | AK4: 0 | AL4: 0 | AM4: 0 | AN4: 0 | AO4: 77.985 | AP4: =SUM(E4:AO4) -> 7438.8035 | AQ4: 5680.3 | AR4: 8 | AS4: 3 | AT4: 192.41 | AU4: 0 | AV4: 451.74 | AW4: 61.97 | AX4: 3.07 | AY4: 0 | AZ4: 0 | BA4: 0 | BB4: 0 | BC4: 0 | BD4: 0 | BE4: 0 | BF4: 0 | BG4: 0 | BH4: 0 | BI4: 0 | BJ4: 0 | BK4: 0 | BL4: 0 | BM4: 0 | BN4: 0 | BO4: 0 | BP4: 0 | BQ4: 0 | BR4: 0 | BS4: 0 | BT4: 0 | BU4: 0 | BV4: 0 | BW4: 0 | BX4: 0 | BY4: 0 | BZ4: 0 | CA4: 0 | CB4: 0 | CC4: 0 | CD4: 0 | CE4: 0 | CF4: 0 | CG4: 0 | CH4: 0 | CI4: 528.92 | CJ4: 58.77 | CK4: 58.77 | CL4: 646.46 | CM4: 955 | CN4: 2321.65 | CO4: متزوج ويعول اثنين | CQ4: 2
A5: 2 | B5: 2 | D5: Name _2 | E5: 1474.43 | F5: 0 | G5: 0 | H5: 80 | I5: 0 | J5: 6 | K5: 4 | L5: 0 | M5: 0 | N5: 1034.163 | O5: 4596.28 | P5: 10 | Q5: 56.28 | R5: 100.36 | S5: 823.71 | T5: 319.8 | U5: 190 | V5: 120 | W5: 322.17 | X5: 0 | Y5: 0 | Z5: 0 | AA5: 0 | AB5: 0 | AC5: 0 | AD5: 0 | AE5: 0 | AF5: 0 | AG5: 0 | AH5: 0 | AI5: 0 | AJ5: 0 | AK5: 0 | AL5: 0 | AM5: 0 | AN5: 0 | AO5: 128.8674 | AP5: =SUM(E5:AO5) -> 9266.0604 | AQ5: 6580.4 | AR5: 8 | AS5: 3 | AT5: 572.51 | AU5: 0 | AV5: 55.06 | AW5: 71.44 | AX5: 3.54 | AY5: 433.57 | AZ5: 0 | BA5: 0 | BB5: 0 | BC5: 0 | BD5: 0 | BE5: 0 | BF5: 0 | BG5: 0 | BH5: 0 | BI5: 0 | BJ5: 0 | BK5: 0 | BL5: 0 | BM5: 0 | BN5: 0 | BO5: 0 | BP5: 0 | BQ5: 0 | BR5: 0 | BS5: 0 | BT5: 0 | BU5: 0 | BV5: 0 | BW5: 0 | BX5: 0 | BY5: 0 | BZ5: 0 | CA5: 0 | CB5: 0 | CC5: 0 | CD5: 0 | CE5: 0 | CF5: 0 | CG5: 0 | CH5: 0 | CI5: 729 | CJ5: 81 | CK5: 81 | CL5: 891 | CM5: 1316.25 | CN5: 3354.37 | CO5: متزوج ويعول اثنين | CQ5: 2
A6: 3 | B6: 4 | D6: Name _3 | E6: 1615.77 | F6: 302.86 | G6: 0 | H6: 80 | I6: 0 | J6: 6 | K6: 4 | L6: 0 | M6: 0 | N6: 1114.767 | O6: 4954.52 | P6: 10 | Q6: 60.67 | R6: 108.19 | S6: 861.49 | T6: 320.75 | U6: 190 | V6: 0 | W6: 0 | X6: 0 | Y6: 0 | Z6: 0 | AA6: 0 | AB6: 0 | AC6: 0 | AD6: 0 | AE6: 0 | AF6: 0 | AG6: 0 | AH6: 0 | AI6: 0 | AJ6: 0 | AK6: 0 | AL6: 0 | AM6: 0 | AN6: 0 | AO6: 138.912 | AP6: 9767.929 | AQ6: 6932.7 | AR6: 8 | AS6: 3 | AT6: 655.23 | AU6: 0 | AV6: 91.52 | AW6: 75.13 | AX6: 3.72 | AY6: 0 | AZ6: 399.63 | BA6: 10 | BB6: 0 | BC6: 0 | BD6: 0 | BE6: 0 | BF6: 0 | BG6: 0 | BH6: 0 | BI6: 0 | BJ6: 0 | BK6: 0 | BL6: 0 | BM6: 0 | BN6: 0 | BO6: 0 | BP6: 0 | BQ6: 0 | BR6: 0 | BS6: 0 | BT6: 0 | BU6: 0 | BV6: 0 | BW6: 0 | BX6: 0 | BY6: 0 | BZ6: 0 | CA6: 0 | CB6: 0 | CC6: 0 | CD6: 0 | CE6: 0 | CF6: 0 | CG6: 0 | CH6: 0 | CI6: 729 | CJ6: 81 | CK6: 81 | CL6: 891 | CM6: 1316.25 | CN6: 3453.48 | CO6: متزوج ويعول اثنين | CQ6: 2
A7: 4 | B7: 5 | D7: Name _4 | E7: 1280.96 | F7: 113.4 | G7: 0 | H7: 0 | I7: 300 | J7: 6 | K7: 4 | L7: 0 | M7: 0 | N7: 886.6215 | O7: 3940.54 | P7: 10 | Q7: 45.09 | R7: 86.05 | S7: 689.31 | T7: 270.5 | U7: 190 | V7: 760 | W7: 1841.37 | X7: 0 | Y7: 0 | Z7: 0 | AA7: 0 | AB7: 0 | AC7: 0 | AD7: 0 | AE7: 0 | AF7: 0 | AG7: 0 | AH7: 0 | AI7: 0 | AJ7: 0 | AK7: 0 | AL7: 0 | AM7: 0 | AN7: 0 | AO7: 110.4822 | AP7: 10534.3237 | AQ7: 6916.6 | AR7: 0 | AS7: 3 | AT7: 811.52 | AU7: 0 | AV7: 412.75 | AW7: 82.74 | AX7: 4.1 | AY7: 0 | AZ7: 0 | BA7: 0 | BB7: 318.45 | BC7: 32.28 | BD7: 4 | BE7: 502.71 | BF7: 0 | BG7: 0 | BH7: 0 | BI7: 0 | BJ7: 0 | BK7: 0 | BL7: 0 | BM7: 0 | BN7: 0 | BO7: 0 | BP7: 0 | BQ7: 0 | BR7: 0 | BS7: 0 | BT7: 0 | BU7: 0 | BV7: 0 | BW7: 0 | BX7: 0 | BY7: 0 | BZ7: 0 | CA7: 0 | CB7: 0 | CC7: 0 | CD7: 0 | CE7: 0 | CF7: 0 | CG7: 0 | CH7: 0 | CI7: 729 | CJ7: 81 | CK7: 81 | CL7: 891 | CM7: 1316.25 | CN7: 4378.8 | CO7: متزوج ويعول اثنين | CQ7: 2
A8: 5 | B8: 7 | D8: Name _5 | E8: 450.17 | F8: 134.31 | G8: 0 | H8: 40 | I8: 0 | J8: 0 | K8: 4 | L8: 0 | M8: 0 | N8: 376.7175 | O8: 1674.3 | P8: 10 | Q8: 30.29 | R8: 34.17 | S8: 386.98 | T8: 131.44 | U8: 200 | V8: 220 | W8: 0 | X8: 0 | Y8: 0 | Z8: 0 | AA8: 0 | AB8: 0 | AC8: 0 | AD8: 0 | AE8: 0 | AF8: 0 | AG8: 0 | AH8: 0 | AI8: 0 | AJ8: 0 | AK8: 0 | AL8: 0 | AM8: 0 | AN8: 0 | AO8: 46.9428 | AP8: 3739.3203 | AQ8: 3055.3 | AR8: 0 | AS8: 3 | AT8: 18.92 | AU8: 0 | AV8: 37.76 | AW8: 31.26 | AX8: 1.55 | AY8: 0 | AZ8: 0 | BA8: 0 | BB8: 0 | BC8: 0 | BD8: 0 | BE8: 0 | BF8: 0 | BG8: 0 | BH8: 0 | BI8: 0 | BJ8: 0 | BK8: 0 | BL8: 0 | BM8: 0 | BN8: 0 | BO8: 0 | BP8: 0 | BQ8: 0 | BR8: 0 | BS8: 0 | BT8: 0 | BU8: 0 | BV8: 0 | BW8: 0 | BX8: 0 | BY8: 0 | BZ8: 0 | CA8: 0 | CB8: 0 | CC8: 0 | CD8: 0 | CE8: 0 | CF8: 0 | CG8: 0 | CH8: 0 | CI8: 291.01 | CJ8: 32.33 | CK8: 32.33 | CL8: 355.67 | CM8: 525.42 | CN8: 973.58 | CO8: اعزب | CQ8: 2
A9: 6 | B9: 12 | D9: Name _6 | E9: 1644.71 | F9: 0 | G9: 0 | H9: 125 | I9: 0 | J9: 6 | K9: 4 | L9: 0 | M9: 0 | N9: 1567.026 | O9: 5223.42 | P9: 10 | Q9: 63.96 | R9: 114.06 | S9: 967 | T9: 341.96 | U9: 180 | V9: 0 | W9: 0 | X9: 396.57 | Y9: 100 | Z9: 0 | AA9: 0 | AB9: 0 | AC9: 0 | AD9: 0 | AE9: 0 | AF9: 0 | AG9: 0 | AH9: 0 | AI9: 0 | AJ9: 0 | AK9: 0 | AL9: 0 | AM9: 0 | AN9: 0 | AO9: 146.451 | AP9: 10890.157 | AQ9: 4964.1 | AR9: 0 | AS9: 3 | AT9: 825.09 | AU9: 0 | AV9: 134.61 | AW9: 84.1 | AX9: 4.16 | AY9: 0 | AZ9: 0 | BA9: 0 | BB9: 83.25 | BC9: 0 | BD9: 4 | BE9: 43.92 | BF9: 3.9 | BG9: 3087.5 | BH9: 0 | BI9: 0 | BJ9: 0 | BK9: 0 | BL9: 0 | BM9: 0 | BN9: 0 | BO9: 0 | BP9: 0 | BQ9: 0 | BR9: 0 | BS9: 0 | BT9: 0 | BU9: 0 | BV9: 0 | BW9: 0 | BX9: 0 | BY9: 0 | BZ9: 0 | CA9: 0 | CB9: 0 | CC9: 0 | CD9: 0 | CE9: 0 | CF9: 0 | CG9: 0 | CH9: 0 | CI9: 729 | CJ9: 81 | CK9: 81 | CL9: 891 | CM9: 1316.25 | CN9: 6480.78 | CO9: متزوج ويعول اثنين | CQ9: 2
A10: 7 | B10: 13 | D10: Name _7 | E10: 530.31 | F10: 226.81 | G10: 600 | H10: 80 | I10: 0 | J10: 6 | K10: 4 | L10: 0 | M10: 560 | N10: 460.8225 | O10: 2048.1 | P10: 10 | Q10: 25.08 | R10: 44.72 | S10: 493.74 | T10: 152.53 | U10: 190 | V10: 200 | W10: 57.42 | X10: 226.81 | Y10: 0 | Z10: 75 | AA10: 0 | AB10: 0 | AC10: 0 | AD10: 0 | AE10: 0 | AF10: 0 | AG10: 0 | AH10: 0 | AI10: 0 | AJ10: 0 | AK10: 0 | AL10: 0 | AM10: 0 | AN10: 0 | AO10: 57.4236 | AP10: 6048.7661 | AQ10: 3901.5 | AR10: 0 | AS10: 3 | AT10: 179.47 | AU10: 0 | AV10: 103.36 | AW10: 49.76 | AX10: 2.46 | AY10: 0 | AZ10: 0 | BA10: 100 | BB10: 109.27 | BC10: 0 | BD10: 0 | BE10: 0 | BF10: 0 | BG10: 0 | BH10: 709.69 | BI10: 0 | BJ10: 0 | BK10: 0 | BL10: 0 | BM10: 0 | BN10: 0 | BO10: 0 | BP10: 0 | BQ10: 0 | BR10: 0 | BS10: 0 | BT10: 0 | BU10: 0 | BV10: 0 | BW10: 0 | BX10: 0 | BY10: 0 | BZ10: 0 | CA10: 0 | CB10: 0 | CC10: 0 | CD10: 0 | CE10: 0 | CF10: 0 | CG10: 0 | CH10: 0 | CI10: 492.32 | CJ10: 54.7 | CK10: 54.7 | CL10: 601.72 | CM10: 888.91 | CN10: 2747.64 | CO10: متزوج ويعول اثنين | CQ10: 2
A11: 8 | B11: 14 | D11: Name _8 | E11: 378.54 | F11: 0 | G11: 0 | H11: 40 | I11: 0 | J11: 4 | K11: 4 | L11: 0 | M11: 0 | N11: 390.8385 | O11: 1737.06 | P11: 10 | Q11: 25.37 | R11: 37.93 | S11: 489.99 | T11: 141.99 | U11: 190 | V11: 0 | W11: 0 | X11: 161.4 | Y11: 0 | Z11: 0 | AA11: 30 | AB11: 0 | AC11: 0 | AD11: 0 | AE11: 0 | AF11: 0 | AG11: 0 | AH11: 0 | AI11: 0 | AJ11: 0 | AK11: 0 | AL11: 0 | AM11: 0 | AN11: 0 | AO11: 48.7026 | AP11: 3689.8211 | AQ11: 3018.25 | AR11: 8 | AS11: 3 | AT11: 13.67 | AU11: 0 | AV11: 0 | AW11: 30.5 | AX11: 1.51 | AY11: 0 | AZ11: 0 | BA11: 0 | BB11: 0 | BC11: 0 | BD11: 0 | BE11: 0 | BF11: 0 | BG11: 0 | BH11: 0 | BI11: 0 | BJ11: 0 | BK11: 0 | BL11: 0 | BM11: 0 | BN11: 0 | BO11: 0 | BP11: 0 | BQ11: 0 | BR11: 0 | BS11: 0 | BT11: 0 | BU11: 0 | BV11: 0 | BW11: 0 | BX11: 0 | BY11: 0 | BZ11: 0 | CA11: 0 | CB11: 0 | CC11: 0 | CD11: 0 | CE11: 0 | CF11: 0 | CG11: 0 | CH11: 0 | CI11: 302.86 | CJ11: 33.65 | CK11: 33.65 | CL11: 370.16 | CM11: 546.82 | CN11: 973.66 | CO11: متزوج ويعول واحد | CQ11: 2
A12: 9 | B12: 15 | D12: Name _9 | E12: 224.61 | F12: 0 | G12: 0 | H12: 60 | I12: 0 | J12: 6 | K12: 4 | L12: 0 | M12: 100 | N12: 283.4505 | O12: 1259.78 | P12: 10 | Q12: 39.01 | R12: 36.49 | S12: 405.28 | T12: 126.64 | U12: 200 | V12: 120 | W12: 57.4 | X12: 0 | Y12: 0 | Z12: 40 | AA12: 0 | AB12: 0 | AC12: 0 | AD12: 0 | AE12: 0 | AF12: 0 | AG12: 0 | AH12: 0 | AI12: 0 | AJ12: 0 | AK12: 0 | AL12: 0 | AM12: 0 | AN12: 0 | AO12: 35.3208 | AP12: 3007.9813 | AQ12: 2456 | AR12: 0 | AS12: 3 | AT12: 3.12 | AU12: 0 | AV12: 51.3 | AW12: 25.34 | AX12: 1.25 | AY12: 0 | AZ12: 0 | BA12: 0 | BB12: 0 | BC12: 0 | BD12: 0 | BE12: 0 | BF12: 0 | BG12: 0 | BH12: 0 | BI12: 0 | BJ12: 0 | BK12: 0 | BL12: 0 | BM12: 0 | BN12: 0 | BO12: 0 | BP12: 0 | BQ12: 0 | BR12: 0 | BS12: 0 | BT12: 0 | BU12: 0 | BV12: 0 | BW12: 0 | BX12: 0 | BY12: 0 | BZ12: 0 | CA12: 0 | CB12: 0 | CC12: 0 | CD12: 0 | CE12: 0 | CF12: 0 | CG12: 0 | CH12: 0 | CI12: 237.64 | CJ12: 26.4 | CK12: 26.4 | CL12: 290.44 | CM12: 429.07 | CN12: 803.52 | CO12: متزوج ويعول اثنين | CQ12: 2
A13: 10 | B13: 17 | D13: Name _10 | E13: 797.46 | F13: 0 | G13: 0 | H13: 60 | I13: 0 | J13: 6 | K13: 4 | L13: 0 | M13: 0 | N13: 599.634 | O13: 2665.04 | P13: 10 | Q13: 32.63 | R13: 58.19 | S13: 535.06 | T13: 178.73 | U13: 190 | V13: 0 | W13: 0 | X13: 0 | Y13: 0 | Z13: 50 | AA13: 0 | AB13: 40 | AC13: 0 | AD13: 0 | AE13: 0 | AF13: 0 | AG13: 0 | AH13: 0 | AI13: 0 | AJ13: 0 | AK13: 0 | AL13: 0 | AM13: 0 | AN13: 0 | AO13: 74.721 | AP13: 5301.465 | AQ13: 2244.5 | AR13: 0 | AS13: 3 | AT13: 90.93 | AU13: 0 | AV13: 0 | AW13: 42.98 | AX13: 2.13 | AY13: 0 | AZ13: 0 | BA13: 0 | BB13: 0 | BC13: 0 | BD13: 0 | BE13: 0 | BF13: 0 | BG13: 0 | BH13: 0 | BI13: 208.33 | BJ13: 1800 | BK13: 0 | BL13: 0 | BM13: 0 | BN13: 0 | BO13: 0 | BP13: 0 | BQ13: 0 | BR13: 0 | BS13: 0 | BT13: 0 | BU13: 0 | BV13: 0 | BW13: 0 | BX13: 0 | BY13: 0 | BZ13: 0 | CA13: 0 | CB13: 0 | CC13: 0 | CD13: 0 | CE13: 0 | CF13: 0 | CG13: 0 | CH13: 0 | CI13: 437.04 | CJ13: 48.56 | CK13: 48.56 | CL13: 534.16 | CM13: 789.1 | CN13: 3470.63 | CO13: متزوج ويعول اثنين | CQ13: 2
A14: 11 | B14: 18 | D14: Name _11 | E14: 924.11 | F14: 0 | G14: 0 | H14: 60 | I14: 240 | J14: 6 | K14: 4 | L14: 0 | M14: 0 | N14: 703.0035 | O14: 3124.46 | P14: 10 | Q14: 38.26 | R14: 68.23 | S14: 638.12 | T14: 200.56 | U14: 190 | V14: 20 | W14: 21.9 | X14: 0 | Y14: 0 | Z14: 50 | AA14: 0 | AB14: 0 | AC14: 0 | AD14: 0 | AE14: 0 | AF14: 0 | AG14: 0 | AH14: 0 | AI14: 0 | AJ14: 0 | AK14: 0 | AL14: 0 | AM14: 0 | AN14: 0 | AO14: 87.6018 | AP14: 6386.2453 | AQ14: 4115.8 | AR14: 0 | AS14: 3 | AT14: 148.62 | AU14: 0 | AV14: 37.76 | AW14: 51.77 | AX14: 2.56 | AY14: 0 | AZ14: 0 | BA14: 0 | BB14: 0 | BC14: 0 | BD14: 4 | BE14: 0 | BF14: 16.45 | BG14: 0 | BH14: 0 | BI14: 208.33 | BJ14: 0 | BK14: 740 | BL14: 0 | BM14: 0 | BN14: 0 | BO14: 0 | BP14: 0 | BQ14: 0 | BR14: 0 | BS14: 0 | BT14: 0 | BU14: 0 | BV14: 0 | BW14: 0 | BX14: 0 | BY14: 0 | BZ14: 0 | CA14: 0 | CB14: 0 | CC14: 0 | CD14: 0 | CE14: 0 | CF14: 0 | CG14: 0 | CH14: 0 | CI14: 505.44 | CJ14: 56.16 | CK14: 56.16 | CL14: 617.76 | CM14: 912.61 | CN14: 2742.86 | CO14: متزوج ويعول اثنين | CQ14: 2
A15: 12 | B15: 19 | D15: Name _12 | E15: 796.57 | F15: 0 | G15: 0 | H15: 0 | I15: 0 | J15: 6 | K15: 4 | L15: 0 | M15: 0 | N15: 638.7615 | O15: 2838.94 | P15: 10 | Q15: 34.76 | R15: 61.99 | S15: 622.9 | T15: 185.17 | U15: 190 | V15: 0 | W15: 0 | X15: 226.81 | Y15: 0 | Z15: 50 | AA15: 0 | AB15: 0 | AC15: 0 | AD15: 0 | AE15: 0 | AF15: 0 | AG15: 0 | AH15: 0 | AI15: 0 | AJ15: 0 | AK15: 0 | AL15: 0 | AM15: 0 | AN15: 0 | AO15: 79.5966 | AP15: 5745.4981 | AQ15: 4421.6 | AR15: 0 | AS15: 3 | AT15: 118.82 | AU15: 0 | AV15: 0 | AW15: 46.37 | AX15: 2.3 | AY15: 0 | AZ15: 0 | BA15: 0 | BB15: 166.5 | BC15: 0 | BD15: 0 | BE15: 0 | BF15: 0 | BG15: 0 | BH15: 0 | BI15: 0 | BJ15: 0 | BK15: 0 | BL15: 0 | BM15: 0 | BN15: 0 | BO15: 0 | BP15: 0 | BQ15: 0 | BR15: 0 | BS15: 0 | BT15: 0 | BU15: 0 | BV15: 0 | BW15: 0 | BX15: 0 | BY15: 0 | BZ15: 0 | CA15: 0 | CB15: 0 | CC15: 0 | CD15: 0 | CE15: 0 | CF15: 0 | CG15: 0 | CH15: 0 | CI15: 480.2 | CJ15: 53.36 | CK15: 53.36 | CL15: 586.92 | CM15: 867.03 | CN15: 1790.94 | CO15: متزوج ويعول اثنين | CQ15: 2
A16: 13 | B16: 20 | D16: Name _13 | E16: 644.21 | F16: 67.15 | G16: 0 | H16: 0 | I16: 300 | J16: 6 | K16: 4 | L16: 0 | M16: 0 | N16: 513.594 | O16: 2282.64 | P16: 10 | Q16: 26.12 | R16: 49.84 | S16: 497.11 | T16: 161.13 | U16: 200 | V16: 760 | W16: 1066.65 | X16: 0 | Y16: 0 | Z16: 0 | AA16: 0 | AB16: 0 | AC16: 0 | AD16: 0 | AE16: 0 | AF16: 0 | AG16: 0 | AH16: 0 | AI16: 0 | AJ16: 0 | AK16: 0 | AL16: 0 | AM16: 0 | AN16: 0 | AO16: 63.999 | AP16: 6652.443 | AQ16: 4244.5 | AR16: 0 | AS16: 3 | AT16: 221.95 | AU16: 0 | AV16: 409.48 | AW16: 55.27 | AX16: 2.74 | AY16: 0 | AZ16: 0 | BA16: 0 | BB16: 0 | BC16: 0 | BD16: 4 | BE16: 489.18 | BF16: 7 | BG16: 0 | BH16: 0 | BI16: 0 | BJ16: 285 | BK16: 0 | BL16: 30 | BM16: 0 | BN16: 0 | BO16: 0 | BP16: 0 | BQ16: 0 | BR16: 0 | BS16: 0 | BT16: 0 | BU16: 0 | BV16: 0 | BW16: 0 | BX16: 0 | BY16: 0 | BZ16: 0 | CA16: 0 | CB16: 0 | CC16: 0 | CD16: 0 | CE16: 0 | CF16: 0 | CG16: 0 | CH16: 0 | CI16: 473.47 | CJ16: 52.61 | CK16: 52.61 | CL16: 578.69 | CM16: 854.89 | CN16: 2941.2 | CO16: متزوج ويعول اثنين | CQ16: 2

Sheet Salary Sheets
B1: القاهرة في : | C1: =TODAY() -> 2021-07-14
D2: مفردات الدخل الشهرى عن شهر | H2: =TODAY() -> 2021-07-14
B4: للسيد/ | C4: =VLOOKUP($K$4,' DBase'!$B:$CO,3,0) -> Name _1 | J4: رقم ثابت/ | K4: 1
B5: المهنة/ | J5: الحالة الاجتماعية/
B6: شركة | J6: مركز التكلفة/
H7: فيزا | J7: نوع التعاقد/
C8: الاستحقاقات | F8: الاستقطاعات
A9: 11 | C9: مرتب اساسي | D9: =VLOOKUP(K$4,' DBase'!$B:$CO,'Salary Sheets'!A9,0) -> 500 | F9: صندوق زمالة | J9: =VLOOKUP(K$4,' DBase'!$B:$CN,O9,0) -> 0 | O9: 50
A10: =A9+1 -> 12 | C10: بدل خطر | D10: =VLOOKUP(K$4,' DBase'!$B:$CO,'Salary Sheets'!A10,0) -> 350 | F10: نقابه عمال بناء | J10: =VLOOKUP(K$4,' DBase'!$B:$CN,O10,0) -> 0 | O10: =O9+1 -> 51
A11: 13 | C11: بدل ندرة | D11: =VLOOKUP(K$4,' DBase'!$B:$CO,'Salary Sheets'!A11,0) -> 625.8285 | F11: كسب عمل | J11: =VLOOKUP(K$4,' DBase'!$B:$CN,O11,0) -> 0 | O11: =O10+1 -> 52
A12: 14 | C12: بدل انتقال | D12: =VLOOKUP(K$4,' DBase'!$B:$CO,'Salary Sheets'!A12,0) -> 2781.46 | F12: خصم ساعات انصراف | J12: =VLOOKUP(K$4,' DBase'!$B:$CN,O12,0) -> 0 | O12: 53
A13: 15 | C13: مصاريف انتقال | D13: =VLOOKUP(K$4,' DBase'!$B:$CO,'Salary Sheets'!A13,0) -> 10 | F13: فاتوره فودافون | J13: =VLOOKUP(K$4,' DBase'!$B:$CN,O13,0) -> 0 | O13: 54
A14: 16 | C14: غلاء معيشة إضافى | D14: =VLOOKUP(K$4,' DBase'!$B:$CO,'Salary Sheets'!A14,0) -> 31.83 | F14: المساهمة التـكـافـليـة | J14: =VLOOKUP(K$4,' DBase'!$B:$CN,O14,0) -> 0 | O14: 55
A15: 17 | C15: غلاء معيشه اصلى | D15: =VLOOKUP(K$4,' DBase'!$B:$CO,'Salary Sheets'!A15,0) -> 56.76 | F15: قانون 4 لعام 2021 | J15: =VLOOKUP(K$4,' DBase'!$B:$CN,O15,0) -> 0 | O15: 56
A16: 18 | C16: مصاريف اعاشة | D16: =VLOOKUP(K$4,' DBase'!$B:$CO,'Salary Sheets'!A16,0) -> 549.43 | F16: مبالغ صرفت بالزياده | J16: =VLOOKUP(K$4,' DBase'!$B:$CN,O16,0) -> 0 | O16: 57
A17: 19 | C17: نوبتجيات | D17: =VLOOKUP(K$4,' DBase'!$B:$CO,'Salary Sheets'!A17,0) -> 177.4 | F17: قسط شقق عاملين | J17: =VLOOKUP(K$4,' DBase'!$B:$CN,O17,0) -> 0 | O17: 58
A18: 20 | C18: جهود غير عادية | D18: =VLOOKUP(K$4,' DBase'!$B:$CO,'Salary Sheets'!A18,0) -> 190 | F18: تبرع مستشفى 57357 | J18: =VLOOKUP(K$4,' DBase'!$B:$CN,O18,0) -> 0 | O18: 59
A19: 21 | C19: حوافز | D19: =VLOOKUP(K$4,' DBase'!$B:$CO,'Salary Sheets'!A19,0) -> 0 | F19: اثاث | J19: =VLOOKUP(K$4,' DBase'!$B:$CN,O19,0) -> 0 | O19: 60
A20: 22 | C20: منحة عيد عمال | D20: =VLOOKUP(K$4,' DBase'!$B:$CO,'Salary Sheets'!A20,0) -> 0 | F20: بريميوم كارد | J20: =VLOOKUP(K$4,' DBase'!$B:$CN,O20,0) -> 0 | O20: 61
A21: 23 | C21: منحة 2019 من الدولة | D21: =VLOOKUP(K$4,' DBase'!$B:$CO,'Salary Sheets'!A21,0) -> 0 | F21: اشتراك اتوبيس | J21: =VLOOKUP(K$4,' DBase'!$B:$CN,O21,0) -> 0 | O21: 62
A22: 24 | C22: منحة 2020 من الدولة | D22: =VLOOKUP(K$4,' DBase'!$B:$CO,'Salary Sheets'!A22,0) -> 0 | F22: فاتوره اتصالات | J22: =VLOOKUP(K$4,' DBase'!$B:$CN,O22,0) -> 0 | O22: 63
A23: 25 | C23: علاوات مضمومه | D23: =VLOOKUP(K$4,' DBase'!$B:$CO,'Salary Sheets'!A23,0) -> 0 | F23: مده سابقه | J23: =VLOOKUP(K$4,' DBase'!$B:$CN,O23,0) -> 0 | O23: 64
A24: 26 | C24: علاوات غير مضمومه | D24: =VLOOKUP(K$4,' DBase'!$B:$CO,'Salary Sheets'!A24,0) -> 0 | F24: سلفه عمره وحج | J24: =VLOOKUP(K$4,' DBase'!$B:$CN,O24,0) -> 0 | O24: 65
A25: 27 | C25: علاوة استثنائية 2018 | D25: =VLOOKUP(K$4,' DBase'!$B:$CO,'Salary Sheets'!A25,0) -> 0 | F25: ناوباى - NowPay | J25: =VLOOKUP(K$4,' DBase'!$B:$CN,O25,0) -> 0 | O25: 66
A26: 28 | C26: بـدل وجبة | D26: =VLOOKUP(K$4,' DBase'!$B:$CO,'Salary Sheets'!A26,0) -> 0 | F26: ١ - سلفه صندوق | J26: =VLOOKUP(K$4,' DBase'!$B:$CN,O26,0) -> 0 | O26: 67
A27: 29 | C27: قيمة اضافى | D27: =VLOOKUP(K$4,' DBase'!$B:$CO,'Salary Sheets'!A27,0) -> 0 | F27: البنك اهلى المصرى | J27: =VLOOKUP(K$4,' DBase'!$B:$CN,O27,0) -> 0 | O27: 68
A28: 30 | C28: بدل تفرغ | D28: =VLOOKUP(K$4,' DBase'!$B:$CO,'Salary Sheets'!A28,0) -> 0 | F28: نفقات | J28: =VLOOKUP(K$4,' DBase'!$B:$CN,O28,0) -> 0 | O28: 69
A29: 31 | C29: بدل تمثيل | D29: =VLOOKUP(K$4,' DBase'!$B:$CO,'Salary Sheets'!A29,0) -> 0 | F29: تبرع مستشفى ابو الريش | J29: =VLOOKUP(K$4,' DBase'!$B:$CN,O29,0) -> 0 | O29: 70
A30: 32 | C30: بدل كمبيوتر | D30: =VLOOKUP(K$4,' DBase'!$B:$CO,'Salary Sheets'!A30,0) -> 0 | F30: فاتوره أورانج | J30: =VLOOKUP(K$4,' DBase'!$B:$CN,O30,0) -> 0 | O30: 71
A31: 33 | C31: بدل سفر | D31: =VLOOKUP(K$4,' DBase'!$B:$CO,'Salary Sheets'!A31,0) -> 0 | F31: تسويه ضرائب مدينه | J31: =VLOOKUP(K$4,' DBase'!$B:$CN,O31,0) -> 0 | O31: 72
A32: 34 | C32: بدل طبيعة عمل | D32: =VLOOKUP(K$4,' DBase'!$B:$CO,'Salary Sheets'!A32,0) -> 0 | F32: قسط تامين جماعى | J32: =VLOOKUP(K$4,' DBase'!$B:$CN,O32,0) -> 0 | O32: 73
A33: 35 | C33: بدل صرافة | D33: =VLOOKUP(K$4,' DBase'!$B:$CO,'Salary Sheets'!A33,0) -> 0 | F33: دفعات | J33: =VLOOKUP(K$4,' DBase'!$B:$CN,O33,0) -> 0 | O33: 74
A34: 36 | C34: بـدل وجبة - دفعات | D34: =VLOOKUP(K$4,' DBase'!$B:$CO,'Salary Sheets'!A34,0) -> 0 | F34: مساهمة العاملين فى العلاج | J34: =VLOOKUP(K$4,' DBase'!$B:$CN,O34,0) -> 0 | O34: 75
A35: 37 | C35: قيمة اضافى - دفعات | D35: =VLOOKUP(K$4,' DBase'!$B:$CO,'Salary Sheets'!A35,0) -> 0 | F35: جزاءات مقسطة | J35: =VLOOKUP(K$4,' DBase'!$B:$CN,O35,0) -> 0 | O35: 76
A36: 38 | C36: بدل اجر مقابل | D36: =VLOOKUP(K$4,' DBase'!$B:$CO,'Salary Sheets'!A36,0) -> 0 | F36: نقابات مهنيه تجاريين | J36: =VLOOKUP(K$4,' DBase'!$B:$CN,O36,0) -> 0 | O36: 77
A37: 39 | C37: فروق بدلات | D37: =VLOOKUP(K$4,' DBase'!$B:$CO,'Salary Sheets'!A37,0) -> 0 | F37: اقساط رحلات ١ | J37: =VLOOKUP(K$4,' DBase'!$B:$CN,O37,0) -> 0 | O37: 78
A38: 40 | C38: فروق بدل انتقال | D38: =VLOOKUP(K$4,' DBase'!$B:$CO,'Salary Sheets'!A38,0) -> 77.985 | F38: فرق البنك اهلى المصرى | J38: =VLOOKUP(K$4,' DBase'!$B:$CN,O38,0) -> 0 | O38: 79
A39: 41 | C39: فروق حوافز | D39: =VLOOKUP(K$4,' DBase'!$B:$CO,'Salary Sheets'!A39,0) -> 7438.8035 | F39: بنك ناصر اجتماعى | J39: =VLOOKUP(K$4,' DBase'!$B:$CN,O39,0) -> 0 | O39: 80
A40: 42 | C40: بدل سماعة | D40: =VLOOKUP(K$4,' DBase'!$B:$CO,'Salary Sheets'!A40,0) -> 5680.3 | F40: تبرع مستشفى اورام | J40: =VLOOKUP(K$4,' DBase'!$B:$CN,O40,0) -> 0 | O40: 81
A41: 43 | C41: مبالغ خصمت بالزيادة | D41: =VLOOKUP(K$4,' DBase'!$B:$CO,'Salary Sheets'!A41,0) -> 8 | F41: تبرع مؤسسة مصر الخير | J41: =VLOOKUP(K$4,' DBase'!$B:$CN,O41,0) -> 0 | O41: 82
A42: 44 | C42: بدل مرور | D42: =VLOOKUP(K$4,' DBase'!$B:$CO,'Salary Sheets'!A42,0) -> 3 | F42: فرق استقطاعات اخري | J42: =VLOOKUP(K$4,' DBase'!$B:$CN,O42,0) -> 0 | O42: 83
A43: 45 | C43: جهود غير عادية غير منسبة | D43: =VLOOKUP(K$4,' DBase'!$B:$CO,'Salary Sheets'!A43,0) -> 192.41 | F43: تبرع مؤسسة مجدى يعقوب | J43: =VLOOKUP(K$4,' DBase'!$B:$CN,O43,0) -> 0 | O43: 84
A44: 46 | C44: بدل إقامة اضافي | D44: =VLOOKUP(K$4,' DBase'!$B:$CO,'Salary Sheets'!A44,0) -> 0 | F44: متجمد النفقه الشرعيه | J44: =VLOOKUP(K$4,' DBase'!$B:$CN,O44,0) -> 0 | O44: 85
A45: 47 | C45: منحة 2021 من الدولة | D45: =VLOOKUP(K$4,' DBase'!$B:$CO,'Salary Sheets'!A45,0) -> 451.74 | F45: فرق مده سابقه | J45: =VLOOKUP(K$4,' DBase'!$B:$CN,O45,0) -> 528.92 | O45: 86
A46: 48 | C46: اجمالى الاستحقاقات | D46: =VLOOKUP(K$4,' DBase'!$B:$CH,'Salary Sheets'!A46,0) -> 61.97 | F46: تبرع المعهد القومى للكلى | J46: =VLOOKUP(K$4,' DBase'!$B:$CN,O46,0) -> 58.77 | O46: 87
C47: حصة تأمينات الشركة | D47: =J57 ->  | F47: فرق نفقات | J47: =VLOOKUP(K$4,' DBase'!$B:$CN,O47,0) -> 58.77 | O47: 88
C48: الاجمالى الاستحقاقات وحصة تأمينات الشركة | D48: =D47+D46 ->  | F48: سلفه علاج | J48: =VLOOKUP(K$4,' DBase'!$B:$CN,O48,0) -> 646.46 | O48: 89
C49: الصافى | D49: =D48-J58 ->  | F49: فرق اثاث | J49: =VLOOKUP(K$4,' DBase'!$B:$CN,O49,0) -> 955 | O49: 90
F50: صندوق تامين العاملين اقساط | J50: =VLOOKUP(K$4,' DBase'!$B:$CN,O50,0) -> 2321.65 | O50: 91
F51: مبالغ سددتها الشركة عن العامل | J51: =VLOOKUP(K$4,' DBase'!$B:$CN,O50,0) -> 2321.65
F52: اجمالى الاستقطاعات | J52: =SUM(J9:J51) -> 6891.22
F53: شيخوخة وعجز حصة عامل | J53: =VLOOKUP(K$4,' DBase'!$B:$CN,O53,0) ->  | O53: 93
F54: نظام مكافأة حصة عامل | J54: =VLOOKUP(K$4,' DBase'!$B:$CN,O54,0) ->  | O54: 94
F55: تامين مرض حصة عامل (صحى ) | J55: =VLOOKUP(K$4,' DBase'!$B:$CN,O55,0) ->  | O55: 95
F56: اجمالى حصة تأمينات العامل | J56: =VLOOKUP(K$4,' DBase'!$B:$CN,O56,0) ->  | O56: 96
F57: حصة تأمينات الشركة | J57: =VLOOKUP(K$4,' DBase'!$B:$CN,O57,0) ->  | O57: 97
F58: اجمالى الاستقطاعات والتأمينات | J58: =VLOOKUP(K$4,' DBase'!$B:$CN,O58,0) ->  | O58: 98

Sheet Rules (hidden)
A1: مصاريف انتقال | B1: مصاريف اعاشة | C1: منحة عيد العمال | D1: اجمالى
H3: الجهود تم حسابها بدلالة( بدل التمثيل) | J3: النسبة x ( الاساسى+العلاوات المضمومة)
H4: بدل التمثيل | I4: نسبة الجهود
D5: 7757.41 | H5: 0 | I5: 0.45
C6: شيخوخة وعجز حصة عامل | D6: 0.01 | E6: جملة الاستحقاقات | H6: 100 | I6: 0.6
D7: =D6*D5 -> 77.5741 | H7: 150 | I7: 0.65
H8: 200 | I8: 0.7
H11: المساهمة التكافلية
H12: جملة المستحق-(الضريبة + التأمينات + الزمالة ) * 1%
H14: قانون 4 لسنة 2021
H15: جملة المستحق-(الضريبة + التأمينات + الزمالة+المساهمة التكافلية ) * 0.0005
I25: 1 | L25: =IF($I25<>"",INDEX(DATA,MATCH($I25,NUM,0),COLUMN()-8),"") -> 350
